fUST/lending_fUST_20260512
["ID","MTS","AMOUNT","RATE_DAILY","PERIOD"]
[422069783,1778548238000,-500.0,0.00010958,2]
[422069785,1778548238000,-826.42,0.00010958,2]
[422069787,1778548238000,-500.0,0.00010958,2]
[422069789,1778548238000,-500.0,0.00010958,2]
[422069774,1778548238000,-1129.63,0.00010958,2]
[422069791,1778548238000,-518.96,0.00010958,2]
[422069793,1778548238000,-708.83,0.00010958,2]
[422069795,1778548238000,-500.0,0.00010958,2]
[422069797,1778548238000,-512.71,0.00010958,2]
[422069799,1778548238000,-500.0,0.00010958,2]
[422069815,1778548238000,-1959.15,0.00010958,2]
[422069813,1778548238000,-500.0,0.00010958,2]
[422069809,1778548238000,-1075.78,0.00010958,2]
[422069818,1778548238000,-500.0,0.00010958,2]
[422069816,1778548238000,-866.45,0.00010958,2]
[422069807,1778548238000,-500.0,0.00010958,2]
[422069949,1778548239000,-160.55,0.00011232,2]
[422069947,1778548239000,-500.0,0.00011232,2]
[422069944,1778548239000,-500.0,0.00011232,2]
[422069934,1778548239000,-500.0,0.00011232,2]
[422069929,1778548239000,-1746.5401,0.00011232,2]
[422069942,1778548239000,-500.0,0.00011232,2]
[422069927,1778548239000,-500.0,0.00011232,2]
[422069940,1778548239000,-500.0,0.00011232,2]
[422069938,1778548239000,-500.0,0.00011232,2]
[422069925,1778548239000,-6914.244852,0.00011232,2]
[422069945,1778548239000,-500.0,0.00011232,2]
[422069931,1778548239000,-500.0,0.00011232,2]
[422069951,1778548239000,-500.0,0.00011232,2]
[422069974,1778548239000,-500.0,0.00011232,2]
[422069867,1778548239000,-500.0,0.00010958,2]
[422069953,1778548239000,-500.0,0.00011232,2]
[422069960,1778548239000,-1335.75,0.00011232,2]
[422069962,1778548239000,-500.0,0.00011232,2]
[422069958,1778548239000,-500.0,0.00011232,2]
[422069955,1778548239000,-624.37,0.00011232,2]
[422069964,1778548239000,-500.0,0.00011232,2]
[422069968,1778548239000,-500.0,0.00011232,2]
[422069966,1778548239000,-500.0,0.00011232,2]
[422069970,1778548239000,-500.0,0.00011232,2]
[422069982,1778548239000,-500.0,0.00011232,2]
[422069972,1778548239000,-500.0,0.00011232,2]
[422069936,1778548239000,-500.0,0.00011232,2]
[422069978,1778548239000,-250.66,0.00011232,2]
[422069956,1778548239000,-217.88420137,0.00011232,2]
[422069924,1778548239000,-500.0,0.00011232,2]
[422069876,1778548239000,-500.0,0.00010958,2]
[422069922,1778548239000,-500.0,0.00011232,2]
[422069976,1778548239000,-519.37,0.00011232,2]
[422069865,1778548239000,-500.0,0.00010958,2]
[422069869,1778548239000,-1184.89,0.00010958,2]
[422069871,1778548239000,-500.0,0.00010958,2]
[422069873,1778548239000,-768.22,0.00010958,2]
[422069875,1778548239000,-2291.57,0.00010958,2]
[422069889,1778548239000,-750.88,0.00010958,2]
[422069882,1778548239000,-1698.5,0.00010958,2]
[422069887,1778548239000,-614.36,0.00010958,2]
[422069883,1778548239000,-500.0,0.00010958,2]
[422069885,1778548239000,-500.0,0.00010958,2]
[422069878,1778548239000,-500.0,0.00010958,2]
[422069880,1778548239000,-519.42,0.00010958,2]
[422069895,1778548239000,-626.51,0.00010958,2]
[422069893,1778548239000,-517.34,0.00010958,2]
[422069891,1778548239000,-1122.59,0.00010958,2]
[422069897,1778548239000,-500.0,0.00010958,2]
[422069905,1778548239000,-514.91,0.00010958,2]
[422069907,1778548239000,-161.621689,0.00011033,2]
[422069910,1778548239000,-160.0,0.00011033,2]
[422069909,1778548239000,-160.0,0.00011033,2]
[422069912,1778548239000,-1402.0,0.00011225,2]
[422069899,1778548239000,-1291.95,0.00010958,2]
[422069914,1778548239000,-647.0,0.00011225,2]
[422069903,1778548239000,-1074.57,0.00010958,2]
[422069901,1778548239000,-2159.76,0.00010958,2]
[422069916,1778548239000,-2201.0,0.00011225,2]
[422069920,1778548239000,-500.0,0.00011232,2]
[422069918,1778548239000,-500.0,0.00011232,2]
[422069932,1778548239000,-1308.86,0.00011232,2]
[422069980,1778548239000,-500.0,0.00011232,2]
[422070018,1778548239000,-500.0,0.00011232,2]
[422069988,1778548239000,-589.83,0.00011232,2]
[422070063,1778548239000,-500.0,0.00011232,2]
[422070067,1778548239000,-1167.98,0.00011232,2]
[422070061,1778548239000,-708.83,0.00011232,2]
[422070065,1778548239000,-252.29,0.00011232,2]
[422070073,1778548239000,-1075.78,0.00011232,2]
[422070075,1778548239000,-500.0,0.00011232,2]
[422070071,1778548239000,-500.0,0.00011232,2]
[422070077,1778548239000,-1959.15,0.00011232,2]
[422070084,1778548239000,-3160.83,0.00011232,2]
[422070086,1778548239000,-500.0,0.00011232,2]
[422070080,1778548239000,-500.0,0.00011232,2]
[422070078,1778548239000,-866.45,0.00011232,2]
[422070082,1778548239000,-695.09,0.00011232,2]
[422070059,1778548239000,-518.96,0.00011232,2]
[422070088,1778548239000,-500.0,0.00011232,2]
[422070096,1778548239000,-14622.49,0.00011232,2]
[422070094,1778548239000,-500.0,0.00011232,2]
[422070090,1778548239000,-1925.68,0.00011232,2]
[422070098,1778548239000,-500.0,0.00011232,2]
[422070100,1778548239000,-570.38,0.00011232,2]
[422070102,1778548239000,-557.68,0.00011232,2]
[422070110,1778548239000,-533.05,0.00011232,2]
[422070104,1778548239000,-2719.37,0.00011232,2]
[422070114,1778548239000,-500.0,0.00011232,2]
[422070112,1778548239000,-500.0,0.00011232,2]
[422070106,1778548239000,-2727.8,0.00011232,2]
[422070108,1778548239000,-162.64,0.00011232,2]
[422069984,1778548239000,-500.0,0.00011232,2]
[422070092,1778548239000,-2086.11,0.00011232,2]
[422070069,1778548239000,-500.0,0.00011232,2]
[422070024,1778548239000,-500.0,0.00011232,2]
[422070057,1778548239000,-500.0,0.00011232,2]
[422069992,1778548239000,-500.0,0.00011232,2]
[422070055,1778548239000,-500.0,0.00011232,2]
[422069986,1778548239000,-500.0,0.00011232,2]
[422069990,1778548239000,-1339.1,0.00011232,2]
[422069996,1778548239000,-486.46,0.00011232,2]
[422069998,1778548239000,-1287.27,0.00011232,2]
[422070000,1778548239000,-500.0,0.00011232,2]
[422070002,1778548239000,-577.39,0.00011232,2]
[422070010,1778548239000,-500.0,0.00011232,2]
[422070004,1778548239000,-277.71,0.00011232,2]
[422070008,1778548239000,-500.0,0.00011232,2]
[422070006,1778548239000,-500.0,0.00011232,2]
[422070012,1778548239000,-500.0,0.00011232,2]
[422070014,1778548239000,-500.0,0.00011232,2]
[422069994,1778548239000,-689.03,0.00011232,2]
[422070016,1778548239000,-589.82,0.00011232,2]
[422070050,1778548239000,-500.0,0.00011232,2]
[422070053,1778548239000,-826.42,0.00011232,2]
[422070020,1778548239000,-500.0,0.00011232,2]
[422070032,1778548239000,-500.0,0.00011232,2]
[422070034,1778548239000,-2798.03,0.00011232,2]
[422070030,1778548239000,-500.0,0.00011232,2]
[422070028,1778548239000,-529.53,0.00011232,2]
[422070026,1778548239000,-443.59,0.00011232,2]
[422070044,1778548239000,-598.49,0.00011232,2]
[422070040,1778548239000,-500.0,0.00011232,2]
[422070036,1778548239000,-1129.63,0.00011232,2]
[422070038,1778548239000,-500.0,0.00011232,2]
[422070022,1778548239000,-500.0,0.00011232,2]
[422070042,1778548239000,-1620.9,0.00011232,2]
[422070188,1778548240000,-500.0,0.00011506,2]
[422070210,1778548240000,-500.0,0.00011506,2]
[422070189,1778548240000,-500.0,0.00011506,2]
[422070193,1778548240000,-500.0,0.00011506,2]
[422070191,1778548240000,-500.0,0.00011506,2]
[422070199,1778548240000,-624.37,0.00011506,2]
[422070197,1778548240000,-500.0,0.00011506,2]
[422070201,1778548240000,-500.0,0.00011506,2]
[422070203,1778548240000,-1335.75,0.00011506,2]
[422070214,1778548240000,-500.0,0.00011506,2]
[422070216,1778548240000,-500.0,0.00011506,2]
[422070205,1778548240000,-500.0,0.00011506,2]
[422070206,1778548240000,-500.0,0.00011506,2]
[422070208,1778548240000,-500.0,0.00011506,2]
[422070220,1778548240000,-500.0,0.00011506,2]
[422070222,1778548240000,-500.0,0.00011506,2]
[422070218,1778548240000,-519.37,0.00011506,2]
[422070195,1778548240000,-500.0,0.00011506,2]
[422070212,1778548240000,-500.0,0.00011506,2]
[422070186,1778548240000,-500.0,0.00011506,2]
[422070164,1778548240000,-156.14,0.00011506,2]
[422070182,1778548240000,-500.0,0.00011506,2]
[422070149,1778548240000,-1122.59,0.00011232,2]
[422070145,1778548240000,-614.36,0.00011232,2]
[422070152,1778548240000,-626.51,0.00011232,2]
[422070151,1778548240000,-517.34,0.00011232,2]
[422070162,1778548240000,-720.0,0.0001128,2]
[422070156,1778548240000,-2159.76,0.00011232,2]
[422070154,1778548240000,-1291.95,0.00011232,2]
[422070223,1778548240000,-500.0,0.00011506,2]
[422070160,1778548240000,-514.91,0.00011232,2]
[422070158,1778548240000,-1074.57,0.00011232,2]
[422070166,1778548240000,-500.0,0.00011506,2]
[422070171,1778548240000,-6914.244852,0.00011506,2]
[422070173,1778548240000,-500.0,0.00011506,2]
[422070168,1778548240000,-500.0,0.00011506,2]
[422070169,1778548240000,-500.0,0.00011506,2]
[422070175,1778548240000,-536.4468,0.00011506,2]
[422070177,1778548240000,-500.0,0.00011506,2]
[422070179,1778548240000,-1308.86,0.00011506,2]
[422070180,1778548240000,-500.0,0.00011506,2]
[422070184,1778548240000,-194.2,0.00011506,2]
[422070225,1778548240000,-500.0,0.00011506,2]
[422070268,1778548240000,-500.0,0.00011506,2]
[422070231,1778548240000,-689.03,0.00011506,2]
[422070286,1778548240000,-1167.98,0.00011506,2]
[422070289,1778548240000,-500.0,0.00011506,2]
[422070278,1778548240000,-500.0,0.00011506,2]
[422070276,1778548240000,-500.0,0.00011506,2]
[422070291,1778548240000,-1075.78,0.00011506,2]
[422070293,1778548240000,-500.0,0.00011506,2]
[422070295,1778548240000,-1959.15,0.00011506,2]
[422070297,1778548240000,-866.45,0.00011506,2]
[422070305,1778548240000,-251.20159753,0.00011506,2]
[422070299,1778548240000,-25.31330848,0.00011506,2]
[422070311,1778548240000,-2158.85591489,0.00011506,2]
[422070309,1778548240000,-439.11259777,0.00011506,2]
[422070301,1778548240000,-474.68669152,0.00011506,2]
[422070303,1778548240000,-4.7758047,0.00011506,2]
[422070315,1778548240000,-500.0,0.00011506,2]
[422070313,1778548240000,-1001.97408511,0.00011506,2]
[422070317,1778548240000,-1925.68,0.00011506,2]
[422070319,1778548240000,-963.13308281,0.00011506,2]
[422070147,1778548240000,-750.88,0.00011232,2]
[422070288,1778548240000,-500.0,0.00011506,2]
[422070227,1778548240000,-1339.1,0.00011506,2]
[422070274,1778548240000,-826.42,0.00011506,2]
[422070284,1778548240000,-500.0,0.00011506,2]
[422070229,1778548240000,-500.0,0.00011506,2]
[422070243,1778548240000,-500.0,0.00011506,2]
[422070233,1778548240000,-1287.27,0.00011506,2]
[422070237,1778548240000,-500.0,0.00011506,2]
[422070235,1778548240000,-500.0,0.00011506,2]
[422070244,1778548240000,-500.0,0.00011506,2]
[422070246,1778548240000,-589.82,0.00011506,2]
[422070248,1778548240000,-500.0,0.00011506,2]
[422070239,1778548240000,-500.0,0.00011506,2]
[422070241,1778548240000,-500.0,0.00011506,2]
[422070260,1778548240000,-500.0,0.00011506,2]
[422070262,1778548240000,-2798.03,0.00011506,2]
[422070266,1778548240000,-500.0,0.00011506,2]
[422070250,1778548240000,-500.0,0.00011506,2]
[422070264,1778548240000,-1129.63,0.00011506,2]
[422070254,1778548240000,-500.0,0.00011506,2]
[422070252,1778548240000,-500.0,0.00011506,2]
[422070270,1778548240000,-1620.9,0.00011506,2]
[422070272,1778548240000,-598.49,0.00011506,2]
[422070282,1778548240000,-708.83,0.00011506,2]
[422070280,1778548240000,-518.96,0.00011506,2]
[422070134,1778548240000,-500.0,0.00011232,2]
[422070128,1778548240000,-500.0,0.00011232,2]
[422070116,1778548240000,-500.0,0.00011232,2]
[422070119,1778548240000,-216.88,0.00011232,2]
[422070117,1778548240000,-500.0,0.00011232,2]
[422070121,1778548240000,-500.0,0.00011232,2]
[422070123,1778548240000,-500.0,0.00011232,2]
[422070125,1778548240000,-500.0,0.00011232,2]
[422070132,1778548240000,-2291.57,0.00011232,2]
[422070136,1778548240000,-520.01271019,0.00011232,2]
[422070139,1778548240000,-1698.5,0.00011232,2]
[422070141,1778548240000,-500.0,0.00011232,2]
[422070126,1778548240000,-1184.89,0.00011232,2]
[422070130,1778548240000,-768.22,0.00011232,2]
[422070143,1778548240000,-500.0,0.00011232,2]
[422070137,1778548240000,-519.42,0.00011232,2]
[422070342,1778548241000,-442.33618745,0.00011506,2]
[422070673,1778548243000,-500.0,0.00011506,2]
[422070669,1778548243000,-500.0,0.00011506,2]
[422070663,1778548243000,-533.05,0.00011506,2]
[422070671,1778548243000,-500.0,0.00011506,2]
[422070659,1778548243000,-2719.37,0.00011506,2]
[422070665,1778548243000,-500.0,0.00011506,2]
[422070657,1778548243000,-557.68,0.00011506,2]
[422070655,1778548243000,-570.38,0.00011506,2]
[422070646,1778548243000,-5000.0,0.00011391,2]
[422070644,1778548243000,-185.0,0.00011281,2]
[422070653,1778548243000,-557.61894275,0.00011506,2]
[422070651,1778548243000,-14622.49,0.00011506,2]
[422070650,1778548243000,-500.0,0.00011506,2]
[422070661,1778548243000,-2727.8,0.00011506,2]
[422070648,1778548243000,-680.64072974,0.00011506,2]
[422070675,1778548243000,-500.0,0.00011506,2]
[422070667,1778548243000,-500.0,0.00011506,2]
[422070677,1778548243000,-500.0,0.00011506,2]
[422070679,1778548243000,-1184.89,0.00011506,2]
[422070707,1778548243000,-2159.76,0.00011506,2]
[422070703,1778548243000,-626.51,0.00011506,2]
[422070705,1778548243000,-1291.95,0.00011506,2]
[422070694,1778548243000,-500.0,0.00011506,2]
[422070692,1778548243000,-500.0,0.00011506,2]
[422070696,1778548243000,-614.36,0.00011506,2]
[422070686,1778548243000,-500.0,0.00011506,2]
[422070701,1778548243000,-517.34,0.00011506,2]
[422070700,1778548243000,-1122.59,0.00011506,2]
[422070690,1778548243000,-1698.5,0.00011506,2]
[422070698,1778548243000,-750.88,0.00011506,2]
[422070684,1778548243000,-2291.57,0.00011506,2]
[422070682,1778548243000,-768.22,0.00011506,2]
[422070688,1778548243000,-519.42,0.00011506,2]
[422070681,1778548243000,-500.0,0.00011506,2]
[422070741,1778548244000,-500.0,0.0001178,2]
[422070745,1778548244000,-500.0,0.0001178,2]
[422070734,1778548244000,-500.0,0.0001178,2]
[422070730,1778548244000,-500.0,0.0001178,2]
[422070749,1778548244000,-500.0,0.0001178,2]
[422070747,1778548244000,-500.0,0.0001178,2]
[422070738,1778548244000,-500.0,0.0001178,2]
[422070736,1778548244000,-500.0,0.0001178,2]
[422070743,1778548244000,-1335.75,0.0001178,2]
[422070732,1778548244000,-500.0,0.0001178,2]
[422070728,1778548244000,-500.0,0.0001178,2]
[422070719,1778548244000,-6914.244852,0.0001178,2]
[422070727,1778548244000,-500.0,0.0001178,2]
[422070718,1778548244000,-500.0,0.0001178,2]
[422070714,1778548244000,-500.0,0.0001178,2]
[422070725,1778548244000,-500.0,0.0001178,2]
[422070721,1778548244000,-500.0,0.0001178,2]
[422070723,1778548244000,-500.0,0.0001178,2]
[422070712,1778548244000,-1850.608,0.0001178,2]
[422070710,1778548244000,-514.91,0.00011506,2]
[422070708,1778548244000,-1074.57,0.00011506,2]
[422070740,1778548244000,-624.37,0.0001178,2]
[422070716,1778548244000,-500.0,0.0001178,2]
[422070752,1778548244000,-500.0,0.0001178,2]
[422070750,1778548244000,-500.0,0.0001178,2]
[422070758,1778548244000,-519.37,0.0001178,2]
[422070807,1778548244000,-579.61126158,0.0001178,2]
[422070808,1778548244000,-431.83675393,0.0001178,2]
[422070795,1778548244000,-500.0,0.0001178,2]
[422070792,1778548244000,-589.82,0.0001178,2]
[422070797,1778548244000,-500.0,0.0001178,2]
[422070802,1778548244000,-500.0,0.0001178,2]
[422070800,1778548244000,-500.0,0.0001178,2]
[422070788,1778548244000,-146.66026075,0.0001178,2]
[422070786,1778548244000,-283.87210497,0.0001178,2]
[422070781,1778548244000,-500.0,0.0001178,2]
[422070783,1778548244000,-69.46763428,0.0001178,2]
[422070804,1778548244000,-500.0,0.0001178,2]
[422070779,1778548244000,-500.0,0.0001178,2]
[422070773,1778548244000,-1287.27,0.0001178,2]
[422070769,1778548244000,-500.0,0.0001178,2]
[422070768,1778548244000,-1339.1,0.0001178,2]
[422070771,1778548244000,-689.03,0.0001178,2]
[422070775,1778548244000,-500.0,0.0001178,2]
[422070756,1778548244000,-500.0,0.0001178,2]
[422070766,1778548244000,-500.0,0.0001178,2]
[422070760,1778548244000,-500.0,0.0001178,2]
[422070754,1778548244000,-482.17,0.0001178,2]
[422070764,1778548244000,-500.0,0.0001178,2]
[422070762,1778548244000,-500.0,0.0001178,2]
[422070777,1778548244000,-500.0,0.0001178,2]
[422070987,1778548246000,-2448.28,0.00010958,2]
[422070988,1778548246000,-2448.28,0.00011232,2]
[422070989,1778548246000,-2448.28,0.00011506,2]
[422071019,1778548247000,-2727.8,0.0001178,2]
[422071024,1778548247000,-500.0,0.0001178,2]
[422071018,1778548247000,-2719.37,0.0001178,2]
[422071027,1778548247000,-500.0,0.0001178,2]
[422071020,1778548247000,-533.05,0.0001178,2]
[422071023,1778548247000,-500.0,0.0001178,2]
[422071026,1778548247000,-500.0,0.0001178,2]
[422071021,1778548247000,-500.0,0.0001178,2]
[422071025,1778548247000,-500.0,0.0001178,2]
[422071029,1778548247000,-500.0,0.0001178,2]
[422071028,1778548247000,-1184.89,0.0001178,2]
[422071042,1778548247000,-1291.95,0.0001178,2]
[422071037,1778548247000,-614.36,0.0001178,2]
[422071036,1778548247000,-500.0,0.0001178,2]
[422071034,1778548247000,-1698.5,0.0001178,2]
[422071038,1778548247000,-750.88,0.0001178,2]
[422071032,1778548247000,-500.0,0.0001178,2]
[422071031,1778548247000,-2291.57,0.0001178,2]
[422071030,1778548247000,-768.22,0.0001178,2]
[422071035,1778548247000,-500.0,0.0001178,2]
[422071033,1778548247000,-519.42,0.0001178,2]
[422071039,1778548247000,-1122.59,0.0001178,2]
[422071041,1778548247000,-626.51,0.0001178,2]
[422071016,1778548247000,-570.38,0.0001178,2]
[422071017,1778548247000,-557.68,0.0001178,2]
[422071001,1778548247000,-1167.98,0.0001178,2]
[422071011,1778548247000,-500.0,0.0001178,2]
[422071040,1778548247000,-517.34,0.0001178,2]
[422070991,1778548247000,-500.0,0.0001178,2]
[422070990,1778548247000,-118.18198449,0.0001178,2]
[422070993,1778548247000,-1620.9,0.0001178,2]
[422070994,1778548247000,-598.49,0.0001178,2]
[422070992,1778548247000,-363.49,0.0001178,2]
[422070995,1778548247000,-826.42,0.0001178,2]
[422070998,1778548247000,-518.96,0.0001178,2]
[422070996,1778548247000,-500.0,0.0001178,2]
[422070997,1778548247000,-500.0,0.0001178,2]
[422070999,1778548247000,-708.83,0.0001178,2]
[422071015,1778548247000,-14622.49,0.0001178,2]
[422071000,1778548247000,-500.0,0.0001178,2]
[422071003,1778548247000,-500.0,0.0001178,2]
[422071005,1778548247000,-507.87,0.0001178,2]
[422071004,1778548247000,-1075.78,0.0001178,2]
[422071006,1778548247000,-1959.15,0.0001178,2]
[422071008,1778548247000,-500.0,0.0001178,2]
[422071007,1778548247000,-866.45,0.0001178,2]
[422071009,1778548247000,-695.09,0.0001178,2]
[422071013,1778548247000,-2086.11,0.0001178,2]
[422071012,1778548247000,-1925.68,0.0001178,2]
[422071014,1778548247000,-500.0,0.0001178,2]
[422071010,1778548247000,-3160.83,0.0001178,2]
[422071002,1778548247000,-500.0,0.0001178,2]
[422071050,1778548247000,-160.0,0.00011958,3]
[422071022,1778548247000,-500.0,0.0001178,2]
[422071044,1778548247000,-1074.57,0.0001178,2]
[422071074,1778548247000,-479.53928377,0.00012054,2]
[422071075,1778548247000,-500.0,0.00012054,2]
[422071076,1778548247000,-500.0,0.00012054,2]
[422071077,1778548247000,-500.0,0.00012054,2]
[422071087,1778548247000,-500.0,0.00012054,2]
[422071088,1778548247000,-500.0,0.00012054,2]
[422071089,1778548247000,-500.0,0.00012054,2]
[422071078,1778548247000,-519.37,0.00012054,2]
[422071083,1778548247000,-1339.1,0.00012054,2]
[422071079,1778548247000,-500.0,0.00012054,2]
[422071084,1778548247000,-500.0,0.00012054,2]
[422071073,1778548247000,-470.47,0.00012054,2]
[422071082,1778548247000,-500.0,0.00012054,2]
[422071081,1778548247000,-500.0,0.00012054,2]
[422071085,1778548247000,-689.03,0.00012054,2]
[422071090,1778548247000,-500.0,0.00012054,2]
[422071097,1778548247000,-242.00698559,0.00012054,2]
[422071093,1778548247000,-500.0,0.00012054,2]
[422071098,1778548247000,-58.87533351,0.00012054,2]
[422071094,1778548247000,-500.0,0.00012054,2]
[422071091,1778548247000,-500.0,0.00012054,2]
[422071092,1778548247000,-589.82,0.00012054,2]
[422071096,1778548247000,-257.99301441,0.00012054,2]
[422071049,1778548247000,-510.8,0.000119,2]
[422071086,1778548247000,-1287.27,0.00012054,2]
[422071070,1778548247000,-500.0,0.00012054,2]
[422071080,1778548247000,-500.0,0.00012054,2]
[422071065,1778548247000,-500.0,0.00012054,2]
[422071046,1778548247000,-2448.28,0.0001178,2]
[422071045,1778548247000,-514.91,0.0001178,2]
[422071047,1778548247000,-385.71291315,0.00011855,2]
[422071048,1778548247000,-164.87,0.00011877,2]
[422071052,1778548247000,-165.75784972,0.00012,2]
[422071062,1778548247000,-500.0,0.00012054,2]
[422071054,1778548247000,-155.0,0.00012053,2]
[422071055,1778548247000,-1850.608,0.00012054,2]
[422071043,1778548247000,-2159.76,0.0001178,2]
[422071063,1778548247000,-500.0,0.00012054,2]
[422071051,1778548247000,-331.51569944,0.00012,2]
[422071060,1778548247000,-500.0,0.00012054,2]
[422071053,1778548247000,-167.07,0.00012001,2]
[422071056,1778548247000,-500.0,0.00012054,2]
[422071058,1778548247000,-431.06,0.00012054,2]
[422071057,1778548247000,-500.0,0.00012054,2]
[422071095,1778548247000,-500.0,0.00012054,2]
[422071061,1778548247000,-500.0,0.00012054,2]
[422071064,1778548247000,-500.0,0.00012054,2]
[422071067,1778548247000,-500.0,0.00012054,2]
[422071069,1778548247000,-624.37,0.00012054,2]
[422071066,1778548247000,-500.0,0.00012054,2]
[422071071,1778548247000,-1335.75,0.00012054,2]
[422071072,1778548247000,-500.0,0.00012054,2]
[422071059,1778548247000,-6914.244852,0.00012054,2]
[422071068,1778548247000,-500.0,0.00012054,2]
[422071156,1778549432000,-4562.10263387,0.0001,2]
[422071160,1778549432000,-561.85557731,0.0001,2]
[422071158,1778549432000,-4438.14442269,0.0001,2]
[422071267,1778549441000,-300.0,0.00010199,2]
[422071269,1778549441000,-196.07651467,0.00010857,2]
[422071265,1778549441000,-330.27533771,0.00010082,2]
[422071596,1778549444000,-19964.33982007,0.00010858,2]
[422071594,1778549444000,-135.29250847,0.00010857,2]
[422071598,1778549444000,-4253.12069302,0.00010858,2]
[422071681,1778549446000,-20165.67121127,0.00010858,2]
[422071690,1778549447000,-315.093536,0.00010858,2]
[422071688,1778549447000,-1143.39730097,0.00010858,2]
[422071686,1778549447000,-59122.21492127,0.00010858,2]
[422071694,1778549447000,-210.67264442,0.00010957,2]
[422071692,1778549447000,-500.0,0.00010957,2]
[422071937,1778550632000,-551.94805144,0.000105,2]
[422071936,1778550632000,-1718.9264164,0.0001,2]
[422071939,1778550632000,-156.74805997,0.00010684,2]
[422071951,1778550632000,-500.0,0.00010684,2]
[422071948,1778550632000,-500.0,0.00010684,2]
[422071949,1778550632000,-500.0,0.00010684,2]
[422071941,1778550632000,-155.43520709,0.00010684,2]
[422071938,1778550632000,-1768.36780275,0.000105,2]
[422071947,1778550632000,-500.0,0.00010684,2]
[422071935,1778550632000,-391.92824447,0.0001,2]
[422071928,1778550632000,-1410.30506773,0.0001,2]
[422071934,1778550632000,-269.52946695,0.0001,2]
[422071930,1778550632000,-2294.03378133,0.0001,2]
[422071931,1778550632000,-1295.66115094,0.0001,2]
[422071926,1778550632000,-2267.94430147,0.0001,2]
[422071919,1778550632000,-103.28662455,9.999e-05,2]
[422071921,1778550632000,-331.87910106,9.999e-05,2]
[422071915,1778550632000,-300.0,9.999e-05,2]
[422071917,1778550632000,-110.71337545,9.999e-05,2]
[422071923,1778550632000,-2732.05569853,0.0001,2]
[422071933,1778550632000,-2619.61587218,0.0001,2]
[422071950,1778550632000,-500.0,0.00010684,2]
[422071940,1778550632000,-165.55047542,0.00010684,2]
[422071946,1778550632000,-200.92157832,0.00010684,2]
[422071945,1778550632000,-150.18591123,0.00010684,2]
[422071968,1778550632000,-3448.63328137,0.00010958,2]
[422071969,1778550632000,-545.83712939,0.00010958,2]
[422071967,1778550632000,-1424.4464,0.00010958,2]
[422071965,1778550632000,-500.0,0.00010957,2]
[422071966,1778550632000,-426.27139004,0.00010957,2]
[422071963,1778550632000,-1121.08123851,0.00010858,2]
[422071964,1778550632000,-2468.84054349,0.00010858,2]
[422071962,1778550632000,-5001.11881055,0.000108,2]
[422071957,1778550632000,-159.35425195,0.00010684,2]
[422071956,1778550632000,-302.56207123,0.00010684,2]
[422071958,1778550632000,-500.0,0.00010684,2]
[422071944,1778550632000,-243.18999575,0.00010684,2]
[422071961,1778550632000,-210.22136415,0.00010747,2]
[422071942,1778550632000,-220.66734002,0.00010684,2]